bitfinex/quotes_BTCUSD_20240815
["timestamp","ask_amount","ask_price","bid_price","bid_amount"]
[1723700905767,0.0755,58518.0,58516.0,0.119625]
[1723700905977,0.0009064,58519.0,58516.0,0.119625]
[1723700906182,0.012,58518.0,58516.0,0.119625]
[1723700906418,0.006,58518.0,58515.0,0.239254]
[1723700906675,0.006,58518.0,58517.0,0.119623]
[1723700906848,0.009,58518.0,58517.0,0.119623]
[1723700907052,0.009,58518.0,58515.0,0.119625]
[1723700907301,0.009,58518.0,58516.0,0.119625]
[1723700907482,0.003,58518.0,58516.0,0.119625]
[1723700908236,0.008,58518.0,58516.0,0.119625]
[1723700908445,0.008,58518.0,58517.0,0.119623]
[1723700908686,0.0009064,58519.0,58518.0,0.119621]
[1723700910676,0.0009064,58519.0,58518.0,0.358863]
[1723700911090,0.0049064,58519.0,58518.0,0.358863]
[1723700911292,0.0089064,58519.0,58518.0,0.358863]
[1723700911587,0.0009064,58519.0,58518.0,0.358863]
[1723700911793,0.0039064,58519.0,58518.0,0.358863]
[1723700912002,0.0069064,58519.0,58518.0,0.358863]
[1723700913638,0.0039064,58519.0,58518.0,0.358863]
[1723700913795,0.0039064,58519.0,58518.0,0.119621]
[1723700913997,0.0059064,58519.0,58515.0,0.239253]
[1723700914207,0.0642,58517.0,58504.0,0.0785]
[1723700914404,0.0812,58516.0,58504.0,0.08870407]
[1723700914773,0.0654,58508.0,58494.0,0.0616]
[1723700914975,0.119652,58503.0,58497.0,0.239326]
[1723700915185,0.119652,58503.0,58494.0,0.1435]
[1723700915186,0.0772,58507.0,58500.0,0.119657]
[1723700915391,0.11965,58504.0,58500.0,0.119657]
[1723700917423,0.11965,58504.0,58500.0,0.120657]
[1723700917619,0.12365,58504.0,58500.0,0.120657]
[1723700917835,0.12365,58504.0,58500.0,0.119657]
[1723700917976,0.008,58504.0,58501.0,0.119655]
[1723700918790,0.004,58504.0,58501.0,0.119655]
[1723700918991,0.119648,58505.0,58501.0,0.119655]
[1723700919417,0.196845,58507.0,58499.0,0.239319]
[1723700919619,0.0772,58507.0,58505.0,0.119646]
[1723700921550,0.119638,58510.0,58505.0,0.119646]
[1723700921779,0.007,58507.0,58505.0,0.120646]
[1723700921949,0.014,58507.0,58505.0,0.121646]
[1723700922153,0.11964,58509.0,58505.0,0.119646]
[1723700922700,0.0875,58507.0,58505.0,0.001]
[1723700923129,0.658527,58506.0,58505.0,0.001]
[1723700923352,0.81262242,58506.0,58505.0,0.001]
[1723700923557,0.81262242,58506.0,58494.0,0.000823]
[1723700923558,0.119665,58497.0,58494.0,0.000823]
[1723700923770,0.197165,58497.0,58494.0,0.000823]
[1723700923968,0.119666,58496.0,58494.0,0.000823]
[1723700924334,0.119668,58495.0,58494.0,0.000823]
[1723700924937,0.119668,58495.0,58494.0,0.007823]
[1723700925138,0.119668,58495.0,58494.0,0.000823]
[1723700925341,0.119668,58495.0,58494.0,0.005823]
[1723700925547,0.120668,58495.0,58494.0,0.014823]
[1723700925747,0.120668,58495.0,58494.0,0.009823]
[1723700926785,0.001,58495.0,58494.0,0.009823]
[1723700927172,0.001,58495.0,58494.0,0.012823]
[1723700927173,0.002,58495.0,58494.0,0.012823]
[1723700927792,0.121668,58495.0,58494.0,0.012823]
[1723700928035,0.361004,58495.0,58494.0,0.012823]
[1723700928888,0.359004,58495.0,58494.0,0.000823]
[1723700929093,0.359004,58495.0,58494.0,0.002823]
[1723700929246,0.359004,58495.0,58494.0,0.004823]
[1723700929447,0.59834,58495.0,58494.0,0.004823]
[1723700929848,0.920476,58495.0,58494.0,0.004823]
[1723700930438,0.920476,58495.0,58494.0,0.002823]
[1723700930633,0.68114,58495.0,58494.0,0.002823]
[1723700930858,0.69314,58495.0,58494.0,0.003823]
[1723700931063,0.69314,58495.0,58494.0,0.001823]
[1723700931331,0.70614,58495.0,58494.0,0.000823]
[1723700931508,0.71914,58495.0,58494.0,0.001823]
[1723700931844,0.68114,58495.0,58494.0,0.000823]
[1723700932122,0.68114,58495.0,58494.0,0.001823]
[1723700932123,0.70514,58495.0,58494.0,0.001823]
[1723700935036,0.75621544,58495.0,58494.0,0.001823]
[1723700935838,0.99056998,58495.0,58494.0,0.001823]
[1723700936125,0.93949454,58495.0,58494.0,0.001823]
[1723700936339,1.17883054,58495.0,58494.0,0.001823]
[1723700936914,1.89883054,58495.0,58494.0,0.001823]
[1723700937524,3.17725573,58495.0,58494.0,0.001823]
[1723700938126,3.41659173,58495.0,58494.0,0.001823]
[1723700938556,3.51659173,58495.0,58494.0,0.001823]
[1723700940177,0.234,58490.0,58474.0,0.000823]
[1723700940386,0.119708,58476.0,58474.0,0.000823]
[1723700941121,0.119709,58475.0,58474.0,0.000823]
[1723700941904,0.001,58476.0,58474.0,0.000823]
[1723700942112,1.27842519,58481.0,58480.0,0.119699]
[1723700942321,1.27842519,58481.0,58480.0,0.0828]
[1723700943146,1.27842519,58481.0,58480.0,0.202499]
[1723700943345,1.27842519,58481.0,58480.0,0.0828]
[1723700943968,0.119703,58478.0,58476.0,0.0779]
[1723700944170,0.119703,58478.0,58474.0,0.000823]
[1723700944171,0.119705,58478.0,58474.0,0.000823]
[1723700944391,0.360127,58475.0,58474.0,0.004823]
[1723700944507,0.120709,58475.0,58474.0,0.004823]
[1723700944726,0.119709,58475.0,58474.0,0.000823]
[1723700946368,0.359127,58475.0,58474.0,0.000823]
[1723700946971,0.361127,58475.0,58474.0,0.010823]
[1723700947177,0.988163,58475.0,58474.0,0.010823]
[1723700947581,2.19872473,58475.0,58474.0,0.010823]
[1723700949787,2.43814273,58475.0,58474.0,0.010823]
[1723700951590,2.84911527,58475.0,58474.0,0.010823]
[1723700951775,3.59811527,58475.0,58474.0,0.006823]
[1723700952178,3.60811527,58475.0,58474.0,0.006823]
[1723700952392,3.70711527,58475.0,58474.0,0.000823]
[1723700953182,3.53556073,58475.0,58474.0,0.000823]
[1723700953589,2.54614273,58475.0,58474.0,0.000823]
[1723700953795,2.55514273,58475.0,58474.0,0.001823]
[1723700954174,2.53614273,58475.0,58474.0,0.000823]
[1723700954376,2.56414273,58475.0,58474.0,0.000823]
[1723700954979,0.838005,58472.0,58471.0,1e-08]
[1723700955196,1.10955954,58472.0,58471.0,1e-08]
[1723700955362,2.38798473,58472.0,58471.0,1e-08]
[1723700956543,2.46918473,58472.0,58471.0,1e-08]
[1723700957095,2.54178473,58472.0,58471.0,0.00100001]
[1723700957646,2.55378473,58472.0,58471.0,0.00100001]
[1723700957998,3.37972561,58472.0,58471.0,0.00100001]
[1723700958197,3.61915561,58472.0,58471.0,0.00100001]
[1723700958817,2.82915561,58472.0,58471.0,0.00100001]
[1723700959012,3.58321473,58472.0,58471.0,0.00100001]
[1723700959252,2.79321473,58472.0,58471.0,0.00100001]
[1723700961179,3.54321473,58472.0,58471.0,0.00100001]
[1723700961751,3.58321473,58472.0,58471.0,0.00100001]
[1723700961954,0.838064,58468.0,58467.0,0.0117465]
[1723700962107,1.00961854,58468.0,58467.0,0.0117465]
[1723700962552,1.08991854,58468.0,58467.0,0.0117465]
[1723700962942,1.08971271,58468.0,58467.0,0.0117465]
[1723700963728,1.10371271,58468.0,58467.0,0.0117465]
[1723700964284,1.89371271,58468.0,58467.0,0.0117465]
[1723700964620,3.56616999,58468.0,58467.0,0.0117465]
[1723700964822,3.5764239,58468.0,58467.0,0.0117465]
[1723700965244,3.62739828,58468.0,58467.0,0.0117465]
[1723700965592,3.5691424,58468.0,58467.0,0.0117465]
[1723700966211,2.85263156,58468.0,58467.0,0.0117465]
[1723700966433,3.2378379,58468.0,58467.0,0.0117465]
[1723700966651,3.1721379,58468.0,58467.0,0.0117465]
[1723700967275,3.46258822,58468.0,58467.0,0.0117465]
[1723700967472,3.98710992,58468.0,58467.0,0.0117465]
[1723700967679,4.05671569,58468.0,58467.0,0.0117465]
[1723700968176,4.04271569,58468.0,58467.0,0.0117465]
[1723700968395,4.19815165,58468.0,58467.0,0.0117465]
[1723700969481,4.19815165,58468.0,58467.0,0.0125695]
[1723700969814,4.17015165,58468.0,58467.0,0.0125695]
[1723700970014,4.18415165,58468.0,58467.0,0.0125695]
[1723700970207,4.19815165,58468.0,58467.0,0.0125695]
[1723700970445,4.07071569,58468.0,58467.0,0.0125695]
[1723700971423,4.1379237,58468.0,58467.0,0.0125695]
[1723700971625,4.13693083,58468.0,58467.0,0.0125695]
[1723700971828,0.838176,58460.0,58459.0,0.00824]
[1723700972006,2.36815573,58460.0,58459.0,0.00824]
[1723700972602,2.28815573,58460.0,58459.0,0.00824]
[1723700973228,2.84798927,58460.0,58459.0,0.00824]
[1723700973661,2.8990441,58460.0,58459.0,0.00824]
[1723700974080,2.9080441,58460.0,58459.0,0.00824]
[1723700974308,3.6980441,58460.0,58459.0,0.00824]
[1723700974517,2.85698927,58460.0,58459.0,0.00824]
[1723700974709,3.64698927,58460.0,58459.0,0.00824]
[1723700975196,3.58698927,58460.0,58459.0,0.00824]
[1723700975786,3.70596856,58460.0,58459.0,0.00824]
[1723700975966,4.06278999,58460.0,58459.0,0.00824]
[1723700976166,4.13001045,58460.0,58459.0,0.00824]
[1723700976393,3.89053145,58460.0,58459.0,0.00824]
[1723700976597,3.22782165,58460.0,58451.0,0.00844]
[1723700976869,1.52097409,58452.0,58451.0,0.00844]
[1723700977070,1.73535956,58452.0,58451.0,0.00844]
[1723700977242,1.6332228,58452.0,58451.0,0.00844]
[1723700977452,2.44532756,58452.0,58451.0,0.00844]
[1723700977721,2.57089289,58452.0,58451.0,0.00844]
[1723700977866,2.98195943,58452.0,58451.0,0.00844]
[1723700978074,2.85428934,58452.0,58451.0,0.00844]
[1723700978301,2.98195943,58452.0,58451.0,0.00844]
[1723700978494,2.86628934,58452.0,58451.0,0.00844]
[1723700978694,2.6947348,58452.0,58451.0,0.00844]
[1723700979401,2.82240489,58452.0,58451.0,0.00844]
[1723700979601,2.88240489,58452.0,58451.0,0.00844]
[1723700980016,2.91840489,58452.0,58451.0,0.00844]
[1723700980240,2.90133923,58452.0,58451.0,0.00844]
[1723700980439,3.07308442,58452.0,58451.0,0.00844]
[1723700980854,2.16852988,58452.0,58451.0,0.00844]
[1723700981267,2.04089836,58452.0,58451.0,0.00844]
[1723700981878,0.598872,58443.0,58442.0,0.0765]
[1723700982084,2.04885173,58443.0,58442.0,0.0765]
[1723700983323,2.05185173,58443.0,58442.0,0.0765]
[1723700983529,0.359367,58436.0,58435.0,0.08343]
[1723700983914,0.119789,58436.0,58435.0,0.14563]
[1723700984560,0.119786,58438.0,58435.0,0.14563]
[1723700984705,0.239558,58441.0,58436.0,0.0825]
[1723700984908,0.17155454,58442.0,58435.0,0.00823]
[1723700984909,0.119777,58442.0,58439.0,0.0636]
[1723700985111,0.239534,58447.0,58442.0,0.0636]
[1723700985112,1.27842519,58445.0,58442.0,0.0636]
[1723700985313,0.119763,58449.0,58444.0,0.119771]
[1723700985553,0.119766,58447.0,58446.0,0.0636]
[1723700985911,1.27842519,58451.0,58447.0,0.0825]
[1723700986108,1.27842519,58451.0,58448.0,0.0628]
[1723700986317,1.39817519,58455.0,58450.0,0.0628]
[1723700986531,0.05104015,58459.0,58449.0,0.239524]
[1723700986532,0.119748,58456.0,58453.0,0.0818]
[1723700986924,0.05104015,58461.0,58455.0,0.0603]
[1723700987126,1.27842519,58462.0,58456.0,0.0818]
[1723700987382,1.27842519,58462.0,58460.0,0.0818]
[1723700987575,1.27842519,58462.0,58461.0,0.180037]
[1723700988528,1.29142519,58462.0,58461.0,0.180037]
[1723700988720,1.30442519,58462.0,58461.0,0.497912]
[1723700988840,1.30442519,58462.0,58461.0,0.258437]
[1723700989056,1.29142519,58462.0,58461.0,0.258437]
[1723700989704,1.29142519,58462.0,58461.0,0.497912]
[1723700990059,1.27842519,58462.0,58461.0,0.258437]
[1723700990287,1.28542519,58462.0,58461.0,0.259437]
[1723700990437,1.29142519,58462.0,58461.0,0.1407]
[1723700991047,0.013,58462.0,58461.0,0.1407]
[1723700991246,0.132735,58462.0,58461.0,0.1407]
[1723700991631,0.013,58462.0,58461.0,0.1407]
[1723700993054,0.132735,58462.0,58461.0,0.1407]
[1723700993265,0.013,58462.0,58461.0,0.1407]
[1723700993782,0.132735,58462.0,58461.0,0.1407]
[1723700996176,0.013,58462.0,58461.0,0.260437]
[1723700996420,0.0139053,58462.0,58461.0,0.499912]
[1723700996843,0.0139053,58462.0,58461.0,0.260437]
[1723700999688,0.0139053,58462.0,58461.0,0.1407]
[1723701000911,0.0139053,58462.0,58461.0,0.002]
[1723701001148,0.1336403,58462.0,58461.0,0.002]
[1723701002011,0.3731113,58462.0,58461.0,0.002]
[1723701002420,0.1336403,58462.0,58461.0,0.002]
[1723701003849,0.3731113,58462.0,58461.0,0.002]
[1723701004902,0.1336403,58462.0,58461.0,0.002]
[1723701005589,0.3731113,58462.0,58461.0,0.002]
[1723701009171,0.6125823,58462.0,58461.0,0.002]
[1723701010483,0.3731113,58462.0,58461.0,0.002]
[1723701012487,0.6125823,58462.0,58461.0,0.002]
[1723701012851,1.10530784,58462.0,58461.0,0.002]
[1723701013070,1.16920784,58462.0,58461.0,0.002]
[1723701013480,2.18979699,58462.0,58461.0,0.002]
[1723701013858,2.54334471,58462.0,58461.0,0.002]
[1723701014465,2.43410841,58462.0,58461.0,0.001]
[1723701014861,0.119764,58448.0,58446.0,0.000823]
[1723701015094,0.119766,58447.0,58446.0,0.000823]
[1723701016162,0.598832,58447.0,58446.0,0.000823]
[1723701016388,0.360299,58447.0,58446.0,0.007823]
[1723701017822,0.77138654,58447.0,58446.0,0.007823]
[1723701018022,0.77238654,58447.0,58446.0,0.007823]
[1723701018638,0.77138654,58447.0,58446.0,0.007823]
[1723701018817,1.01091954,58447.0,58446.0,0.007823]
[1723701019239,1.00991954,58447.0,58446.0,0.000823]
[1723701019481,0.77038654,58447.0,58446.0,0.000823]
[1723701020339,0.119766,58447.0,58446.0,0.000823]
[1723701020547,0.17088443,58451.0,58448.0,0.0622]
[1723701020746,0.119761,58450.0,58448.0,0.0622]
[1723701021050,0.119762,58449.0,58448.0,0.0622]
[1723701022466,0.004,58449.0,58448.0,0.0622]
[1723701023077,0.119761,58450.0,58448.0,0.0622]
[1723701023280,0.119759,58451.0,58448.0,0.0622]
[1723701023483,0.004,58449.0,58448.0,0.0622]
[1723701023939,0.009,58449.0,58448.0,0.501193]
[1723701024106,0.009,58449.0,58448.0,0.740722]
[1723701024487,0.004,58449.0,58448.0,0.740722]
[1723701024684,0.004,58449.0,58448.0,0.501193]
[1723701024886,0.003,58451.0,58450.0,0.11976]
[1723701025459,1.27842519,58452.0,58449.0,0.119762]
[1723701025662,1.27842519,58452.0,58451.0,0.119758]
[1723701026382,0.4764,58458.0,58457.0,0.119746]
[1723701026383,0.05112543,58458.0,58457.0,0.119746]
[1723701027641,0.05112543,58458.0,58455.0,0.119748]
[1723701027849,0.05112543,58458.0,58452.0,0.320812]
[1723701027850,0.05112543,58458.0,58456.0,0.119747]
[1723701028193,0.05412543,58458.0,58456.0,0.119747]
[1723701028622,0.05112543,58457.0,58456.0,0.119747]
[1723701028822,0.05112543,58457.0,58453.0,0.239507]
[1723701029239,0.05112543,58457.0,58456.0,0.119748]
[1723701029447,0.003,58458.0,58457.0,0.119746]
[1723701029643,0.006,58458.0,58457.0,0.119746]
[1723701029994,0.05719262,58458.0,58457.0,0.119746]
[1723701030203,0.006,58458.0,58453.0,0.239507]
[1723701030402,0.003,58458.0,58454.0,0.239502]
[1723701030727,0.05119262,58459.0,58455.0,0.119749]
[1723701030912,0.05119262,58458.0,58455.0,0.119749]
[1723701031117,0.002,58457.0,58455.0,0.119749]
[1723701031633,0.05119262,58457.0,58455.0,0.119749]
[1723701031978,0.05119262,58457.0,58452.0,0.0813]
[1723701031979,0.17093962,58457.0,58452.0,0.201055]
[1723701032378,0.17293962,58457.0,58452.0,0.201055]
[1723701032580,0.17093962,58457.0,58452.0,0.201055]
[1723701032954,0.05222553,58457.0,58452.0,0.0813]
[1723701033105,0.001,58457.0,58456.0,0.359244]
[1723701033490,0.004,58457.0,58456.0,0.359244]
[1723701033671,0.004,58457.0,58456.0,0.503744]
[1723701034299,0.003,58457.0,58456.0,0.503744]
[1723701034508,0.006,58457.0,58456.0,0.503744]
[1723701035078,0.05213083,58458.0,58456.0,0.182648]
[1723701035288,0.002,58457.0,58456.0,0.74294]
[1723701035496,0.003,58457.0,58456.0,0.503444]
[1723701035624,0.001,58457.0,58456.0,0.74294]
[1723701035828,0.0009053,58458.0,58457.0,0.59873]
[1723701036230,0.0029053,58458.0,58457.0,0.59873]
[1723701036571,0.0029053,58458.0,58457.0,0.68003]
[1723701036979,0.0029053,58458.0,58457.0,0.74133]
[1723701037384,0.0029053,58458.0,58457.0,0.980822]
[1723701037587,0.0009053,58458.0,58457.0,1.51486854]
[1723701037999,0.0009053,58458.0,58457.0,1.69237452]
[1723701038401,0.0009053,58458.0,58457.0,1.51486854]
[1723701038600,0.0019053,58458.0,58457.0,1.51486854]
[1723701038818,0.0029053,58458.0,58457.0,1.51486854]
[1723701039224,0.0009053,58458.0,58457.0,1.51486854]
[1723701039433,0.0019053,58458.0,58457.0,1.51486854]
[1723701039568,0.0019053,58458.0,58457.0,1.51686854]
[1723701039771,0.0009053,58458.0,58457.0,1.51686854]
[1723701039974,0.0019053,58458.0,58457.0,1.51686854]
[1723701040177,0.0029053,58458.0,58457.0,1.51686854]
[1723701040379,0.0019053,58458.0,58457.0,1.51686854]
[1723701041283,0.0009053,58458.0,58457.0,1.51686854]
[1723701041483,0.0019053,58458.0,58457.0,1.51686854]
[1723701041685,0.0019053,58458.0,58457.0,1.51486854]
[1723701041952,0.0029053,58458.0,58457.0,1.51486854]
[1723701042082,0.0019053,58458.0,58457.0,1.51686854]
[1723701042651,0.0019053,58458.0,58457.0,1.51486854]
[1723701042844,0.0019053,58458.0,58457.0,1.51686854]
[1723701043031,0.0009053,58458.0,58457.0,1.51486854]
[1723701043186,0.0019053,58458.0,58457.0,1.51686854]
[1723701044539,0.0029053,58458.0,58457.0,1.51686854]
[1723701044897,0.0009053,58458.0,58457.0,1.51686854]
[1723701045309,0.0029053,58458.0,58457.0,1.51686854]
[1723701046932,0.0029053,58458.0,58457.0,1.51486854]
[1723701047155,0.0029053,58458.0,58457.0,1.51686854]
[1723701047888,0.0029053,58458.0,58457.0,1.52371754]
[1723701048085,0.0019053,58458.0,58457.0,1.52371754]
[1723701048298,0.0009053,58462.0,58459.0,0.002]
[1723701048491,0.0009053,58472.0,58467.0,0.119725]
[1723701048715,0.0009053,58472.0,58467.0,1.24628154]
[1723701048912,0.0009053,58472.0,58467.0,1.74818354]
[1723701049895,0.0009053,58472.0,58467.0,1.75018354]
[1723701050722,0.0009053,58472.0,58467.0,1.74818354]
[1723701050925,0.0009053,58472.0,58467.0,1.75845295]
[1723701051123,0.0019053,58468.0,58467.0,1.75845295]
[1723701051529,0.0009053,58468.0,58467.0,1.75845295]
[1723701051722,0.0019053,58468.0,58467.0,1.75845295]
[1723701051923,0.0029053,58468.0,58467.0,1.75845295]
[1723701052128,0.0009053,58468.0,58467.0,1.75845295]
[1723701052333,0.0009053,58468.0,58467.0,2.04210395]
[1723701052541,0.0029053,58468.0,58467.0,2.04210395]
[1723701052949,0.0029053,58468.0,58467.0,2.21955883]
[1723701053149,0.0029053,58468.0,58467.0,2.04210395]
[1723701053150,0.0019053,58468.0,58467.0,2.04210395]
[1723701053650,0.0029053,58468.0,58467.0,2.21955877]
[1723701053837,0.0029053,58468.0,58467.0,2.04210395]
[1723701054223,0.0019053,58468.0,58467.0,2.04210395]
[1723701054605,0.0029053,58468.0,58467.0,2.04210395]
[1723701055822,0.0029053,58468.0,58467.0,1.80265295]
[1723701056080,0.0029053,58468.0,58467.0,1.98275295]
[1723701056271,0.0029053,58468.0,58467.0,1.80265295]
[1723701056610,0.0019053,58468.0,58467.0,1.80465295]
[1723701057925,0.0019053,58468.0,58467.0,1.76045295]
[1723701058097,0.0009053,58468.0,58467.0,1.73745295]
[1723701058344,0.0019053,58468.0,58467.0,1.73545295]
[1723701058549,0.0019053,58468.0,58467.0,1.26200195]
[1723701058550,0.0029053,58468.0,58467.0,1.26200195]
[1723701058756,0.0009053,58468.0,58467.0,0.78045095]
[1723701059127,0.0029053,58468.0,58467.0,0.78045095]
[1723701059335,0.0019053,58468.0,58467.0,0.78045095]
[1723701059507,0.0009053,58468.0,58467.0,0.78045095]
[1723701059685,0.0019053,58468.0,58467.0,0.78045095]
[1723701059887,0.0029053,58468.0,58467.0,0.78045095]
[1723701060128,0.0019053,58468.0,58467.0,0.78045095]
[1723701060668,0.0019053,58468.0,58467.0,1.11990195]
[1723701061442,0.0029053,58468.0,58467.0,1.11990195]
[1723701061644,0.0029053,58468.0,58467.0,0.88045095]
[1723701062404,0.0029053,58468.0,58467.0,1.11990195]
[1723701062785,0.0029053,58468.0,58467.0,0.88045095]
[1723701062965,0.0029053,58468.0,58467.0,1.11990195]
[1723701064610,0.0029053,58468.0,58467.0,1.12190195]
[1723701064830,0.0029053,58468.0,58467.0,1.37690195]
[1723701064978,0.0029053,58468.0,58467.0,1.45330195]
[1723701065245,0.0029053,58468.0,58467.0,1.14290195]
[1723701065877,0.0029053,58468.0,58467.0,0.70889641]
[1723701068111,0.0632053,58468.0,58467.0,0.70889641]
[1723701068900,0.0029053,58468.0,58467.0,1.18170195]
[1723701070781,0.0029053,58468.0,58467.0,1.73735295]
[1723701071006,0.0029053,58468.0,58467.0,1.69838981]
[1723701071917,0.0029053,58468.0,58467.0,1.76035295]
[1723701072147,0.0029053,58468.0,58467.0,1.69837575]
[1723701072419,0.0029053,58468.0,58467.0,1.93782675]
[1723701072681,0.0009053,58472.0,58471.0,0.980719]
[1723701072930,0.0009053,58472.0,58471.0,1.61470754]
[1723701073137,0.0009053,58472.0,58471.0,1.79217219]
[1723701073889,0.0009053,58472.0,58471.0,1.79216996]
[1723701074476,0.0019053,58472.0,58471.0,1.80616996]
[1723701074739,0.0029053,58472.0,58471.0,1.80616996]
[1723701074925,0.0019053,58472.0,58471.0,1.80616996]
[1723701075315,0.0029053,58472.0,58471.0,1.80616996]
[1723701075518,0.0029053,58472.0,58471.0,1.62870754]
[1723701075718,0.0019053,58472.0,58471.0,1.80616273]
[1723701075918,0.0009053,58472.0,58471.0,1.61470754]
[1723701076033,0.0019053,58472.0,58471.0,1.79216437]
[1723701076243,0.0029053,58472.0,58471.0,1.80616437]
[1723701077888,0.0029053,58472.0,58471.0,1.32403037]
[1723701078087,0.0029053,58472.0,58471.0,1.30103037]
[1723701078494,0.0029053,58472.0,58471.0,1.12947583]
[1723701078838,0.0029053,58472.0,58471.0,0.952019]
[1723701080053,0.1480053,58472.0,58471.0,0.133717]
[1723701080211,0.0822053,58472.0,58471.0,0.133717]
[1723701080470,0.0822053,58472.0,58471.0,0.852019]
[1723701081047,0.0812053,58472.0,58471.0,0.838019]
[1723701081284,0.0802053,58472.0,58471.0,0.838019]
[1723701081481,0.0822053,58472.0,58471.0,0.860019]
[1723701081659,0.0822053,58472.0,58471.0,0.848019]
[1723701081813,0.0812053,58472.0,58471.0,0.838019]
[1723701082444,0.0832053,58472.0,58471.0,0.858019]
[1723701082872,0.0832053,58472.0,58471.0,0.847019]
[1723701082873,0.0812053,58472.0,58471.0,0.847019]
[1723701084344,0.0822053,58472.0,58471.0,0.858019]
[1723701085415,0.0822053,58472.0,58471.0,0.618585]
[1723701086387,0.0822053,58472.0,58471.0,0.379151]
[1723701086388,0.1457053,58472.0,58471.0,0.379151]
[1723701087422,0.1457053,58472.0,58471.0,0.139717]
[1723701087710,0.1457053,58472.0,58471.0,0.02]
[1723701088121,0.1457053,58472.0,58471.0,0.139717]
[1723701088268,0.1457053,58472.0,58471.0,0.02]
[1723701088676,0.077,58471.0,58469.0,0.11972]
[1723701088898,0.0657,58470.0,58468.0,0.000823]
[1723701089104,0.077,58471.0,58468.0,0.000823]
[1723701089105,0.266021,58469.0,58468.0,0.000823]
[1723701089305,0.505464,58469.0,58468.0,0.000823]
[1723701089510,0.266021,58469.0,58468.0,0.000823]
[1723701090673,0.1463,58469.0,58468.0,0.000823]
[1723701091248,0.1483,58469.0,58468.0,0.000823]
[1723701091672,0.0827053,58472.0,58471.0,0.119717]
[1723701091815,0.0827053,58472.0,58471.0,0.359151]
[1723701092710,0.0827053,58472.0,58471.0,0.598585]
[1723701093326,0.0847053,58472.0,58471.0,0.598585]
[1723701094209,0.0039053,58472.0,58471.0,0.598585]
[1723701094410,0.0039053,58472.0,58471.0,0.838019]
[1723701094738,0.0029053,58472.0,58471.0,0.84827211]
[1723701094848,0.0039053,58472.0,58471.0,0.84827211]
[1723701095054,0.0039053,58472.0,58471.0,0.60883811]
[1723701095264,0.0019053,58472.0,58471.0,0.60883811]
[1723701095711,0.0784053,58472.0,58471.0,0.598585]
[1723701095917,0.1407053,58472.0,58471.0,0.359151]
[1723701096164,0.1397053,58472.0,58471.0,0.359151]
[1723701096571,0.1397053,58472.0,58471.0,0.363151]
[1723701097116,0.1397053,58472.0,58471.0,0.359151]
[1723701097436,0.0794,58471.0,58468.0,0.000823]
[1723701097641,0.0794,58471.0,58469.0,0.239443]
[1723701098284,0.0794,58471.0,58470.0,0.119719]
[1723701098685,0.0794,58471.0,58470.0,0.359158]
[1723701098902,0.0794,58471.0,58470.0,0.119719]
[1723701099045,0.0834,58471.0,58470.0,0.359158]
[1723701100009,0.0844,58471.0,58470.0,0.359158]
[1723701101314,0.0804,58471.0,58470.0,0.359158]
[1723701101542,0.0804,58471.0,58470.0,0.598597]
[1723701101873,0.001,58471.0,58470.0,0.598597]
[1723701102622,0.0009053,58472.0,58471.0,0.598585]
[1723701105364,0.0009053,58472.0,58471.0,0.604585]
[1723701105545,0.0009053,58472.0,58471.0,0.600585]
[1723701105755,0.0009053,58472.0,58471.0,0.598585]
[1723701105962,0.0009053,58472.0,58471.0,0.602585]
[1723701106165,0.0009053,58472.0,58471.0,0.844019]
[1723701106843,0.0009053,58472.0,58471.0,1.01557354]
[1723701107021,0.0009053,58472.0,58471.0,1.34270754]
[1723701107232,0.0009053,58472.0,58471.0,1.44270754]
[1723701107447,0.0009053,58472.0,58471.0,1.43670754]
[1723701107646,0.0009053,58472.0,58471.0,1.51600754]
[1723701107782,0.0009053,58472.0,58471.0,1.52000754]
[1723701107985,0.0009053,58472.0,58471.0,1.51600754]
[1723701108387,0.0009053,58472.0,58471.0,1.52800754]
[1723701108388,0.0019053,58472.0,58471.0,1.52800754]
[1723701108787,0.05111011,58484.0,58483.0,0.598462]
[1723701108984,0.05111011,58484.0,58483.0,0.837847]
[1723701109196,0.05111011,58484.0,58482.0,0.0606]
[1723701109197,0.0764,58488.0,58482.0,0.0606]
[1723701109421,0.0764,58488.0,58487.0,0.598422]
[1723701110417,0.0814,58488.0,58487.0,0.598422]
[1723701110620,0.0814,58488.0,58487.0,0.837791]
[1723701110621,0.005,58488.0,58487.0,0.837791]
[1723701110848,0.005,58488.0,58487.0,1.08674554]
[1723701112009,0.0009053,58494.0,58493.0,0.59836]
[1723701113372,0.0009053,58494.0,58493.0,0.60136]
[1723701113978,0.0009053,58494.0,58493.0,0.59836]
[1723701114277,0.1421053,58494.0,58493.0,0.119672]
[1723701114488,0.1421053,58494.0,58493.0,0.123672]
[1723701114691,0.1421053,58494.0,58493.0,0.119672]
[1723701115049,0.1421053,58494.0,58493.0,0.122672]
[1723701115249,0.1421053,58494.0,58493.0,0.124672]
[1723701115520,0.1421053,58494.0,58493.0,0.121672]
[1723701115761,0.1451053,58494.0,58493.0,0.121672]
[1723701115932,0.0807053,58494.0,58493.0,0.59836]
[1723701116167,0.0837053,58494.0,58493.0,0.59836]
[1723701116544,0.0069053,58494.0,58493.0,0.984204]
[1723701116747,0.0069053,58494.0,58493.0,0.837704]
[1723701116946,0.0039053,58494.0,58493.0,0.837704]
[1723701117108,0.0059053,58494.0,58493.0,0.837704]
[1723701117505,0.0029053,58494.0,58493.0,0.837704]
[1723701118304,0.0009053,58494.0,58493.0,0.841704]
[1723701118711,0.0009053,58494.0,58493.0,0.840704]
[1723701118913,0.0009053,58494.0,58493.0,0.844704]
[1723701119380,0.0009053,58494.0,58493.0,0.841704]
[1723701119544,0.0009053,58494.0,58493.0,1.01625854]
[1723701119746,0.0009053,58494.0,58493.0,1.01225854]
[1723701120185,0.0009053,58494.0,58493.0,1.00925854]
[1723701120471,0.0821,58493.0,58485.0,0.239376]
[1723701120698,0.0821,58493.0,58491.0,0.119675]
[1723701120964,0.0821,58493.0,58489.0,0.23936]
[1723701121239,0.0821,58493.0,58488.0,0.239364]
[1723701121469,0.0821,58493.0,58491.0,0.119675]